bitfinex/quotes_ETHUSD_20250603
["timestamp","ask_amount","ask_price","bid_price","bid_amount"]
[1748909655711,3.82382578,2615.2,2614.7,1.27565154]
[1748909655712,4.124,2615.2,2614.7,1.27565154]
[1748909655943,0.03821316,2615.2,2614.7,1.27565154]
[1748909656318,0.03821316,2615.2,2614.7,7.82295478]
[1748909656520,0.89691316,2615.6,2615.0,6.54730324]
[1748909656720,3.82263397,2616.0,2615.4,6.54730324]
[1748909656721,0.8587,2616.0,2615.4,6.54730324]
[1748909656952,0.03821316,2615.9,2615.4,6.54730324]
[1748909657329,0.03821316,2615.9,2615.4,6.58553507]
[1748909657526,4.126,2616.1,2615.4,10.37078373]
[1748909657527,0.03821316,2616.0,2615.4,10.37078373]
[1748909657726,0.03821316,2616.0,2615.4,6.54730324]
[1748909657926,8.53916448,2616.0,2615.4,6.54730324]
[1748909658124,8.50095132,2616.0,2615.1,7.38530324]
[1748909658336,0.03821316,2615.9,2615.1,7.38530324]
[1748909658923,7.98303897,2615.9,2615.1,7.38530324]
[1748909659254,4.16021316,2615.9,2615.1,7.38530324]
[1748909659440,1.6483903,2615.8,2615.1,7.38530324]
[1748909659641,0.03821316,2615.7,2615.1,7.38530324]
[1748909660246,0.03821316,2615.7,2615.1,11.58499115]
[1748909660453,4.12,2615.8,2615.1,7.76118618]
[1748909660749,0.03821316,2615.9,2615.4,6.54730324]
[1748909661068,0.03821316,2616.1,2615.4,10.37073017]
[1748909661246,0.03821316,2616.1,2615.4,6.54730324]
[1748909661247,1.33876448,2616.1,2615.4,6.54730324]
[1748909661422,1.33876448,2616.1,2615.1,15.70607076]
[1748909661939,1.33876448,2616.1,2615.4,6.54730324]
[1748909662131,0.03821316,2616.1,2615.4,6.54730324]
[1748909662522,0.03821316,2616.1,2615.4,10.37072028]
[1748909662722,0.03821316,2616.1,2615.4,10.3707828]
[1748909663351,0.03821316,2616.1,2615.4,6.54730324]
[1748909664553,3.86071807,2616.1,2615.1,5.33488294]
[1748909664861,1.26463682,2616.0,2615.1,15.70611922]
[1748909665169,0.03821316,2615.9,2615.2,3.82379932]
[1748909665326,0.03821316,2616.1,2615.2,3.82379932]
[1748909665854,0.03821316,2616.1,2615.3,3.82356412]
[1748909666054,0.03821316,2616.1,2615.4,6.54730324]
[1748909666557,0.03821316,2616.1,2615.4,10.37073262]
[1748909666945,0.03821316,2616.1,2615.4,6.54730324]
[1748909667120,4.74227136,2616.1,2615.1,11.88218618]
[1748909667460,3.82265474,2616.0,2615.1,11.88218618]
[1748909667755,0.03821316,2615.9,2615.1,5.03776318]
[1748909667959,0.03821316,2615.9,2615.1,1.21388294]
[1748909668177,0.03821316,2615.9,2614.8,3.82438359]
[1748909668178,0.8396,2615.8,2614.8,0.883]
[1748909668328,7.96728155,2615.7,2614.8,0.883]
[1748909668666,4.66303748,2615.5,2614.7,1.27565154]
[1748909668870,0.8396,2615.5,2614.9,6.54730324]
[1748909669077,0.8396,2615.5,2615.0,3.82408804]
[1748909669280,0.8396,2615.5,2615.0,0.03823702]
[1748909669428,0.8396,2615.5,2614.9,10.37147263]
[1748909669823,0.8396,2615.5,2614.9,6.54730324]
[1748909670134,0.8396,2615.5,2615.0,3.82399422]
[1748909670340,0.8396,2615.5,2614.9,6.54730324]
[1748909670535,0.03821316,2615.4,2614.9,6.54730324]
[1748909670858,0.8396,2615.5,2614.9,10.3714627]
[1748909671155,4.102,2615.7,2615.0,4.73651439]
[1748909671358,4.64069448,2615.7,2615.0,4.73651439]
[1748909671578,0.03821316,2615.7,2615.2,6.54730324]
[1748909671738,0.8795,2616.2,2615.5,6.54730324]
[1748909672062,0.03821316,2616.1,2615.5,6.58553209]
[1748909673723,4.107,2616.3,2615.7,6.54730324]
[1748909673724,0.90001316,2616.3,2615.7,6.54730324]
[1748909673935,0.90001316,2616.3,2615.7,10.37034648]
[1748909673936,0.8618,2616.3,2615.7,10.37034648]
[1748909674186,0.90001316,2616.6,2616.0,6.54730324]
[1748909674343,0.05821316,2616.9,2616.4,6.54730324]
[1748909674658,0.02,2616.9,2616.4,6.54730324]
[1748909674964,0.49787147,2616.9,2616.4,6.54730324]
[1748909675163,0.02,2616.9,2616.5,0.03821584]
[1748909675323,0.02,2616.9,2616.7,6.54730324]
[1748909675525,0.02,2616.9,2616.8,0.03821405]
[1748909675749,0.02,2616.9,2616.7,7.42640324]
[1748909676147,0.02,2616.9,2616.8,3.82146132]
[1748909676348,0.02,2616.9,2616.7,11.24797748]
[1748909676786,0.02,2616.9,2616.7,7.42640324]
[1748909677262,0.02,2616.9,2616.7,11.24799191]
[1748909677446,0.02,2616.9,2616.7,7.42640324]
[1748909678053,0.02,2616.9,2616.7,0.8791]
[1748909678469,0.40787015,2616.9,2616.4,0.8119]
[1748909678684,0.8784,2616.8,2616.2,6.93534479]
[1748909678986,0.03821316,2616.7,2615.7,7.35920324]
[1748909679194,0.03821316,2616.7,2616.0,6.54730324]
[1748909679644,0.03821316,2616.7,2615.7,7.35920324]
[1748909679847,1.37734017,2616.7,2615.9,3.82276781]
[1748909680047,1.37734017,2616.7,2615.8,3.82287116]
[1748909680449,0.02,2616.9,2616.3,6.54730324]
[1748909680851,0.02,2616.9,2616.4,6.54730324]
[1748909681462,0.02,2616.9,2616.7,6.54730324]
[1748909681682,0.02,2616.9,2616.7,10.36887749]
[1748909682104,0.02,2616.9,2616.7,6.54730324]
[1748909682959,0.02,2616.9,2616.5,10.66130324]
[1748909683688,0.02,2616.9,2616.5,6.54730324]
[1748909684009,0.02,2616.9,2616.3,0.8133]
[1748909684010,1.29747015,2616.9,2616.3,0.8133]
[1748909684175,1.29747015,2616.9,2615.9,6.54730324]
[1748909684375,8.0,2616.8,2615.9,6.54730324]
[1748909684703,0.92781316,2616.7,2615.9,10.36998562]
[1748909685068,0.92781316,2616.7,2616.0,0.03822241]
[1748909685269,0.89278132,2616.6,2615.9,6.54730324]
[1748909685465,0.92781316,2616.7,2615.8,3.82289401]
[1748909685466,0.92781316,2616.7,2616.3,3.82205878]
[1748909685678,0.02,2616.9,2616.5,6.54730324]
[1748909686480,0.02,2616.9,2616.6,0.03821581]
[1748909687011,0.02,2616.9,2616.5,6.54730324]
[1748909687414,0.02,2616.9,2616.6,0.03821361]
[1748909687614,0.02,2616.9,2616.5,6.54730324]
[1748909687971,0.02,2616.9,2616.8,6.54730324]
[1748909688877,0.02,2616.9,2616.5,14.48113631]
[1748909689080,0.02,2616.9,2616.5,10.65930324]
[1748909689600,0.02,2616.9,2616.2,9.18281362]
[1748909689601,0.05821316,2616.9,2616.2,9.18281362]
[1748909689802,0.02,2616.9,2616.3,0.03821578]
[1748909690006,0.8443,2616.8,2616.3,0.66666667]
[1748909690192,0.03821316,2616.7,2616.3,0.66666667]
[1748909690879,0.36965699,2616.9,2616.6,6.54730324]
[1748909690880,0.02,2616.9,2616.6,6.54730324]
[1748909691477,0.02,2616.9,2616.4,8.0]
[1748909691715,0.02,2616.9,2616.3,16.41182391]
[1748909691892,0.02,2616.9,2616.4,3.82202716]
[1748909692223,0.02,2616.9,2616.3,12.28879974]
[1748909692379,0.02,2616.9,2616.3,8.46666991]
[1748909692575,0.8236,2616.8,2616.3,0.66666667]
[1748909693025,0.03821316,2616.7,2616.3,0.66666667]
[1748909693180,0.8236,2616.8,2616.3,0.66666667]
[1748909694085,0.03821316,2616.7,2616.3,0.66666667]
[1748909694483,0.86181316,2616.8,2616.3,0.66666667]
[1748909694819,0.8236,2616.8,2616.3,0.66666667]
[1748909695021,0.03821316,2616.7,2616.3,0.66666667]
[1748909698319,0.86181316,2616.8,2616.3,0.66666667]
[1748909698525,0.8236,2616.8,2616.3,0.66666667]
[1748909699921,0.03821316,2616.7,2616.3,0.66666667]
[1748909700727,0.03821316,2616.7,2616.1,0.74012775]
[1748909700884,0.8236,2616.8,2616.2,0.03821884]
[1748909701079,0.8236,2616.8,2616.4,3.82200439]
[1748909701284,1.25943831,2616.8,2616.2,0.03821884]
[1748909701602,1.25943831,2616.8,2616.1,10.36973863]
[1748909701796,1.29765147,2616.8,2616.1,6.54730324]
[1748909702206,1.25943831,2616.8,2616.2,3.86054202]
[1748909702418,1.25943831,2616.8,2616.2,4.25024665]
[1748909702913,0.02,2616.9,2616.5,3.82189948]
[1748909703092,0.02,2616.9,2616.6,3.8217452]
[1748909703291,0.02,2616.9,2616.6,3.82171995]
[1748909704443,0.02,2616.9,2616.7,6.54730324]
[1748909704654,0.02,2616.9,2616.4,10.65630324]
[1748909705004,0.02,2616.9,2616.6,3.82162668]
[1748909705205,0.02,2616.9,2616.8,3.82146132]
[1748909706446,3.47656991,2617.0,2616.9,3.82131529]
[1748909706651,3.47656991,2617.0,2616.9,16.78461529]
[1748909708117,3.47656991,2617.0,2616.9,12.67861529]
[1748909708327,3.47656991,2617.0,2616.9,3.82131529]
[1748909708643,3.47656991,2617.0,2616.9,10.36861853]
[1748909708953,3.47656991,2617.0,2616.7,6.54730324]
[1748909709138,3.47656991,2617.0,2616.7,8.0]
[1748909709458,3.47656991,2617.0,2616.6,8.0]
[1748909709907,3.47656991,2617.0,2616.7,0.03821138]
[1748909710442,3.47656991,2617.0,2616.7,3.85978969]
[1748909710643,3.47656991,2617.0,2616.6,8.0]
[1748909711142,3.47656991,2617.0,2616.6,8.03821138]
[1748909711505,3.47656991,2617.0,2616.6,0.03821138]
[1748909711739,3.47656991,2617.0,2616.7,3.82152191]
[1748909711949,3.47656991,2617.0,2616.6,3.85990949]
[1748909712244,3.47656991,2617.0,2616.7,3.82158299]
[1748909712422,3.47656991,2617.0,2616.6,8.0]
[1748909712622,3.47656991,2617.0,2616.6,11.8217354]
[1748909713148,3.47656991,2617.0,2616.7,3.82158889]
[1748909713323,3.47656991,2617.0,2616.6,11.82173296]
[1748909713727,3.47656991,2617.0,2616.6,8.0]
[1748909714127,3.47656991,2617.0,2616.7,3.82158876]
[1748909714544,0.03821316,2616.9,2616.2,0.38970463]
[1748909714860,0.8463,2616.8,2616.1,1.2]
[1748909715028,0.8463,2616.8,2616.2,3.86052263]
[1748909715233,2.11768868,2616.8,2616.2,3.86052263]
[1748909715558,0.8463,2616.8,2616.2,0.03821987]
[1748909716121,0.8463,2616.8,2616.2,0.41916461]
[1748909716461,0.8463,2616.8,2616.1,7.74730324]
[1748909716626,0.8463,2616.8,2616.2,3.82231943]
[1748909716964,0.8463,2616.8,2616.1,11.56972848]
[1748909717168,0.03821316,2616.7,2616.1,1.2]
[1748909717460,1.28240831,2616.8,2616.2,3.82232541]
[1748909717622,1.28240831,2616.8,2616.2,4.21308498]
[1748909718064,0.03821316,2616.7,2616.1,1.2]
[1748909718259,1.28240831,2616.8,2616.1,1.2]
[1748909718260,0.8463,2616.8,2616.3,3.82209835]
[1748909718725,0.8463,2616.8,2616.3,3.82217449]
[1748909719065,0.8463,2616.8,2616.2,10.36958886]
[1748909719226,0.8463,2616.8,2616.2,6.54730324]
[1748909719565,0.03821316,2616.7,2616.1,1.2]
[1748909719769,0.8463,2616.4,2616.1,1.2]
[1748909719946,0.03821316,2616.3,2616.1,1.2]
[1748909721830,0.8463,2616.4,2616.1,1.2]
[1748909722229,0.8541,2616.7,2616.1,1.2]
[1748909722527,0.8541,2616.7,2616.2,0.03821929]
[1748909724469,1.39624215,2616.7,2616.2,0.03821929]
[1748909724689,0.03821316,2616.6,2616.1,1.2]
[1748909724852,0.8541,2616.7,2616.2,3.86053349]
[1748909725054,0.8541,2616.7,2616.2,3.82231348]
[1748909725592,0.89231316,2616.7,2615.9,3.8227761]
[1748909725945,1.40728733,2616.7,2615.8,15.42750324]
[1748909726146,1.40728733,2616.7,2615.8,8.0]
[1748909726348,0.55318733,2616.7,2615.6,4.94914481]
[1748909726546,0.8306,2616.5,2615.7,0.3825]
[1748909726747,0.03821316,2616.4,2615.6,9.5085]
[1748909726987,0.8306,2616.5,2615.7,3.82294883]
[1748909727179,0.8306,2616.5,2615.8,3.82292224]
[1748909727887,0.03821316,2616.4,2615.7,3.8229761]
[1748909728093,0.03821316,2616.4,2615.6,13.33164476]
[1748909728497,0.03821316,2616.4,2615.7,3.82303069]
[1748909728696,0.03821316,2616.4,2615.7,3.82300793]
[1748909729508,1.37827873,2616.5,2615.9,3.82276572]
[1748909729719,0.8306,2616.5,2615.9,3.8227761]
[1748909729878,0.8306,2616.5,2616.0,3.82256905]
[1748909730077,0.8306,2616.5,2615.8,6.54730324]
[1748909730324,0.8306,2616.5,2615.6,4.20562775]
[1748909730496,0.03821316,2616.4,2615.7,3.82305446]
[1748909730679,0.8248,2616.3,2615.6,4.20567249]
[1748909730881,0.8248,2616.3,2615.7,3.82305867]
[1748909731084,0.8248,2616.3,2615.6,4.20564513]
[1748909731781,0.8248,2616.3,2615.8,3.82283439]
[1748909732138,0.8248,2616.3,2616.0,3.82262996]
[1748909732419,0.8248,2616.3,2615.9,3.82271759]
[1748909732817,0.8248,2616.3,2615.6,0.3825]
[1748909733125,4.13121316,2616.7,2615.6,4.20559031]
[1748909733305,0.83888164,2616.6,2615.6,4.20559031]
[1748909733624,0.03821316,2616.5,2615.6,4.20559031]
[1748909734279,0.03821316,2616.5,2615.5,11.23655031]
[1748909734280,0.03821316,2616.5,2615.5,6.54730324]
[1748909734482,4.37214434,2616.4,2615.1,79.4522]
[1748909734818,0.03821316,2616.3,2615.3,18.370848]
[1748909735021,4.093,2616.3,2615.5,3.82328044]
[1748909735235,0.03821316,2616.2,2615.4,4.20600692]
[1748909735394,12.80758943,2616.8,2615.8,3.82280939]
[1748909735395,4.093,2616.4,2615.8,3.82280939]
[1748909735596,0.03821316,2616.3,2615.7,3.82302553]
[1748909735909,0.03821316,2616.6,2615.8,3.82284887]
[1748909736121,0.03821316,2616.6,2616.0,3.82248472]
[1748909736329,0.7983,2616.5,2616.0,3.82248472]
[1748909736626,0.7983,2616.5,2616.2,3.82224761]
[1748909736782,0.8679,2616.9,2616.5,3.82184318]
[1748909736984,0.8679,2616.9,2616.5,6.54730324]
[1748909737209,3.47656991,2617.0,2616.5,6.54730324]
[1748909737417,3.47656991,2617.0,2616.6,3.82170265]
[1748909737925,3.47656991,2617.0,2616.6,3.82164528]
[1748909738124,3.47656991,2617.0,2616.5,3.82186123]
[1748909738285,3.47656991,2617.0,2616.4,3.8219896]
[1748909738618,3.47656991,2617.0,2616.3,8.0]
[1748909738920,3.51478307,2617.0,2616.3,8.0]
[1748909739121,3.51478307,2617.0,2616.4,3.8220127]
[1748909739586,3.47656991,2617.0,2616.6,3.82165375]
[1748909739788,3.47656991,2617.0,2616.5,6.54730324]
[1748909740123,3.47656991,2617.0,2616.9,3.82131529]
[1748909740329,3.47656991,2617.0,2616.8,3.82141001]
[1748909740699,3.47656991,2617.0,2616.4,4.093]
[1748909740903,3.47656991,2617.0,2616.2,0.381247]
[1748909740904,0.88011316,2616.9,2616.2,0.381247]
[1748909741090,0.88011316,2616.9,2616.2,3.82225574]
[1748909741290,0.8419,2616.9,2616.3,0.03821795]
[1748909741490,0.8419,2616.9,2616.6,3.82174719]
[1748909741726,0.8419,2616.9,2616.5,4.20840599]
[1748909742029,0.8419,2616.9,2616.5,3.8218501]
[1748909742521,3.47656991,2617.0,2616.4,0.8176]
[1748909742720,3.47656991,2617.0,2616.3,6.54730324]
[1748909743229,3.47656991,2617.0,2616.5,3.82180352]
[1748909743390,3.47656991,2617.0,2616.6,11.18665661]
[1748909743731,3.47656991,2617.0,2616.9,10.36861853]
[1748909743899,3.47656991,2617.0,2616.9,18.36861853]
[1748909745122,3.47656991,2617.0,2616.9,19.20561853]
[1748909745638,3.47656991,2617.0,2616.9,19.58501155]
[1748909747019,3.47656991,2617.0,2616.9,23.67701155]
[1748909747218,3.47656991,2617.0,2616.9,8.37939302]
[1748909747419,3.47656991,2617.0,2616.9,0.37939302]
[1748909747621,3.47656991,2617.0,2616.6,3.82173655]
[1748909747943,3.47656991,2617.0,2616.8,3.82142151]
[1748909748115,3.47656991,2617.0,2616.9,3.82131529]
[1748909748494,3.47656991,2617.0,2616.9,22.40952144]
[1748909748829,3.64465011,2617.7,2617.6,3.82029339]
[1748909749401,3.64465011,2617.7,2617.6,13.2738915]
[1748909749644,3.64465011,2617.7,2617.6,12.68569339]
[1748909749821,3.64465011,2617.7,2617.6,16.77769339]
[1748909750224,3.64465011,2617.7,2617.6,17.32769339]
[1748909751633,3.64465011,2617.7,2617.6,24.44899663]
[1748909751995,3.55268838,2617.7,2617.6,24.99899663]
[1748909752233,3.75793985,2618.5,2618.4,8.69280318]
[1748909752458,0.33160244,2619.0,2618.9,3.81839703]
[1748909752595,0.33160244,2619.0,2618.7,4.65477201]
[1748909752802,0.33160244,2619.0,2618.7,8.8361]
[1748909753018,0.33160244,2619.0,2618.5,8.0]
[1748909753243,0.83898564,2619.0,2618.4,0.8361]
[1748909753541,0.33160244,2619.0,2618.5,8.0]
[1748909753756,0.33160244,2619.0,2618.5,8.38357314]
[1748909754101,0.871,2618.9,2618.2,12.12]
[1748909754303,0.03821316,2618.8,2617.9,0.8361]
[1748909754617,0.03821316,2618.8,2617.3,4.69152813]
[1748909754618,3.8189346,2618.6,2617.3,4.69152813]
[1748909754962,0.8265,2618.2,2617.2,10.3681415]
[1748909755107,0.03821316,2618.1,2617.2,10.36818051]
[1748909755308,0.03821316,2618.1,2617.4,3.82045114]
[1748909755557,0.03821316,2618.1,2617.4,4.23565785]
[1748909755762,0.03821316,2618.1,2617.4,0.3770085]
[1748909756061,0.03821316,2618.1,2617.3,3.82068896]
[1748909756366,0.03821316,2618.1,2617.4,3.82055594]
[1748909756543,0.03821316,2618.1,2617.2,10.67030324]
[1748909756858,0.03821316,2618.1,2617.3,11.82064054]
[1748909757076,0.8222,2618.0,2617.4,3.82056919]
[1748909757704,0.8222,2618.0,2617.3,8.0]
[1748909757904,0.03821316,2617.9,2617.4,0.31893581]
[1748909758169,5.05789346,2618.5,2617.4,0.31893581]
[1748909758170,0.8222,2617.8,2617.5,0.03820239]
[1748909758855,0.8222,2617.8,2617.5,0.03819951]
[1748909759150,0.8222,2617.8,2617.4,0.31893581]
[1748909759356,0.8222,2617.8,2617.3,3.82064184]
[1748909759525,0.8222,2617.8,2617.4,3.82056073]
[1748909759923,0.8222,2617.8,2617.5,0.03819955]
[1748909760254,0.03821316,2618.4,2617.5,8.03819949]
[1748909760255,0.8161,2618.0,2617.5,8.03819949]
[1748909760423,0.8161,2618.6,2618.2,3.81941792]
[1748909760745,0.8161,2618.9,2618.3,8.03818842]
[1748909760973,0.8161,2618.9,2618.4,3.81900264]
[1748909761328,0.8161,2618.9,2618.3,11.81921716]
[1748909761656,0.8161,2618.9,2618.4,3.81908907]
[1748909762015,0.8161,2618.9,2618.3,8.0]
[1748909762215,0.8161,2618.9,2618.5,3.81892666]
[1748909762550,0.33160244,2619.0,2618.4,0.35177824]
[1748909762846,0.33160244,2619.0,2618.5,0.35178797]
[1748909763150,0.33160244,2619.0,2618.6,0.03818078]
[1748909763454,0.33160244,2619.0,2618.8,3.81843473]
[1748909764137,0.33160244,2619.0,2618.9,3.8565758]
[1748909764337,0.33160244,2619.0,2618.7,4.128]
[1748909764539,0.33160244,2619.0,2618.8,3.8567124]
[1748909764755,3.87122959,2619.2,2619.1,3.81810545]
[1748909764953,3.87122959,2619.2,2619.1,11.81810545]
[1748909765169,3.87122959,2619.2,2619.1,18.36540869]
[1748909765317,3.87122959,2619.2,2619.1,11.81810545]
[1748909765635,4.73092959,2619.2,2618.6,14.1117893]
[1748909765852,4.73092959,2619.2,2618.7,8.0]
[1748909766044,4.73092959,2619.2,2618.7,11.81867462]
[1748909766350,4.73092959,2619.2,2618.7,8.0]
[1748909766535,3.87122959,2619.2,2618.8,0.03817669]
[1748909766744,3.87122959,2619.2,2618.8,3.81845033]
[1748909766912,3.87122959,2619.2,2619.1,3.81810545]
[1748909767112,3.87122959,2619.2,2618.8,3.81840909]
[1748909767327,3.87122959,2619.2,2618.7,8.0]
[1748909767531,3.87122959,2619.2,2618.8,3.8184493]
[1748909767730,3.87122959,2619.2,2618.8,4.141]
[1748909767928,3.87122959,2619.2,2619.1,11.81810545]
[1748909768561,3.87122959,2619.2,2619.1,20.34611047]
[1748909768761,3.87122959,2619.2,2619.1,13.34116907]
[1748909768964,3.87122959,2619.2,2619.1,17.49216907]
[1748909769284,3.87122959,2619.2,2619.1,13.34116907]
[1748909769572,3.87122959,2619.2,2619.1,0.70726362]
[1748909769816,3.87122959,2619.2,2619.1,1.06088413]
[1748909769967,3.87122959,2619.2,2619.1,1.06090304]
[1748909770167,3.87122959,2619.2,2619.1,4.52536907]
[1748909770410,3.87122959,2619.2,2619.1,12.56354552]
[1748909770708,3.87122959,2619.2,2619.1,12.52536907]
[1748909770932,3.87122959,2619.2,2619.1,0.70726362]
[1748909771795,4.69962959,2619.2,2619.1,0.70726362]
[1748909773532,5.10138402,2619.2,2619.1,0.70726362]
[1748909773855,21.6193437,2619.2,2619.1,0.70726362]
[1748909774007,21.6193437,2619.2,2619.1,0.50591028]
[1748909774515,21.6223437,2619.2,2619.1,0.50591028]
[1748909775738,4.69962959,2619.2,2619.1,0.50591028]
[1748909776025,4.73784275,2619.2,2619.1,0.50591028]
[1748909776232,4.69962959,2619.2,2619.1,0.50591028]
[1748909779123,8.51758927,2619.2,2619.1,0.50591028]
[1748909779331,4.69962959,2619.2,2619.1,0.50591028]
[1748909781118,4.73784275,2619.2,2619.1,0.50591028]
[1748909782028,8.55580243,2619.2,2619.1,0.50591028]
[1748909782242,8.51758927,2619.2,2619.1,0.50591028]
[1748909782446,4.69962959,2619.2,2619.1,0.50591028]
[1748909782649,4.73784275,2619.2,2619.1,0.50591028]
[1748909782830,8.89384275,2619.2,2619.1,0.50591028]
[1748909783008,10.24400022,2619.2,2619.1,0.50591028]
[1748909783209,14.0619599,2619.2,2619.1,0.50591028]
[1748909783550,14.6119599,2619.2,2619.1,0.50591028]
[1748909784343,22.6119599,2619.2,2619.1,0.50591028]
[1748909784925,18.4559599,2619.2,2619.1,0.50591028]
[1748909785118,23.7899599,2619.2,2619.1,0.50591028]
[1748909785538,30.59850687,2619.2,2619.1,0.50591028]
[1748909785741,3.81854284,2618.8,2618.7,78.6111]
[1748909785954,16.17078981,2618.8,2618.7,78.6111]
[1748909786122,24.17078981,2618.8,2618.7,78.6111]
[1748909786323,17.36224284,2618.8,2618.7,78.6111]
[1748909787157,21.40734284,2618.8,2618.7,77.7362]
[1748909787341,23.84857218,2618.8,2618.7,76.8613]
[1748909787965,20.64514284,2618.8,2618.7,56.39079053]
[1748909788135,20.64514284,2618.8,2618.7,56.19741396]
[1748909789827,21.0338601,2618.8,2618.7,55.81557065]
[1748909791027,21.0338601,2618.8,2618.7,55.73957065]
[1748909791937,7.93414284,2618.8,2618.7,55.73957065]
[1748909792362,0.10871316,2618.8,2618.7,55.73957065]
[1748909792674,4.19721316,2619.1,2618.7,59.60946481]
[1748909794442,8.01537523,2619.1,2618.7,55.73957065]
[1748909794646,0.03821316,2619.1,2618.7,55.73957065]
[1748909794859,4.156,2619.0,2618.7,55.73957065]
[1748909795062,3.87122959,2619.2,2618.7,55.73957065]
[1748909795387,3.87122959,2619.2,2618.8,0.8136]
[1748909795548,3.87122959,2619.2,2618.9,3.86989416]
[1748909796086,3.87122959,2619.2,2619.0,3.81821419]
[1748909796288,3.87122959,2619.2,2619.1,4.72528353]
[1748909796472,2.97102959,2619.2,2619.1,5.024]
[1748909796790,2.87276051,2619.2,2619.1,8.84210545]
[1748909796987,2.87276051,2619.2,2619.1,11.29513092]
[1748909797152,2.83247307,2619.2,2619.1,11.29513092]
[1748909798148,2.83247307,2619.2,2619.1,7.47702547]
[1748909798691,2.83247307,2619.2,2619.1,3.32202547]
[1748909799389,2.83247307,2619.2,2619.1,0.869]
[1748909800292,2.83247307,2619.2,2618.9,3.86989416]
[1748909800916,2.78247307,2619.2,2618.9,3.86989416]
[1748909801212,2.78247307,2619.2,2619.0,3.81820611]
[1748909801573,2.78247307,2619.2,2618.9,3.86989416]
[1748909801816,2.78247307,2619.2,2618.7,55.73957065]
[1748909801999,0.03821316,2619.1,2618.7,55.73957065]
[1748909802203,2.78247307,2619.2,2618.8,0.03818504]
[1748909802570,2.78247307,2619.2,2619.0,3.81813838]
[1748909802811,2.78247307,2619.2,2619.0,12.63716937]
[1748909802989,4.00451933,2619.9,2619.8,3.81708527]
[1748909804082,4.00451933,2619.9,2619.8,4.2057808]
[1748909804688,4.09780907,2620.7,2620.6,3.81592001]
[1748909804689,2.29740907,2620.7,2620.6,3.81592001]
[1748909804929,2.29740907,2620.7,2620.6,9.90321928]
[1748909805244,2.29740907,2620.7,2620.6,5.36951201]
[1748909805528,2.29740907,2620.7,2620.6,19.14720201]
[1748909805742,2.29740907,2620.7,2620.6,13.96625801]
[1748909805880,2.29740907,2620.7,2620.6,8.39951201]
[1748909806080,2.29740907,2620.7,2620.6,17.84701201]
[1748909806397,2.29740907,2620.7,2620.6,8.8975]
[1748909806638,2.29740907,2620.7,2620.6,0.8975]
[1748909806934,2.29740907,2620.7,2620.2,0.8975]
[1748909807138,0.04769917,2620.6,2619.8,0.8975]
[1748909807602,0.04769917,2620.6,2619.9,0.34897554]
[1748909807802,0.04769917,2620.6,2619.8,0.8975]
[1748909807803,0.70280999,2620.6,2619.6,1.193]
[1748909808007,0.8862,2620.5,2619.7,0.01902768]
[1748909808209,0.8862,2620.5,2619.7,3.81720033]
[1748909808409,0.8862,2620.5,2619.6,3.8173335]
[1748909808603,0.8862,2620.5,2619.7,3.81718408]
[1748909808800,2.49057199,2620.5,2619.9,3.81684272]
[1748909808989,0.8862,2620.5,2619.7,4.204]
[1748909809319,0.8862,2620.5,2619.8,0.34894623]
[1748909809503,0.8862,2620.5,2619.9,0.34900644]
[1748909809686,0.8862,2620.5,2620.0,0.34900644]
[1748909809891,3.86392141,2620.4,2619.8,0.34894623]
[1748909810108,0.47501214,2620.3,2619.8,0.34894623]
[1748909810287,0.04771025,2620.2,2619.8,0.34894623]
[1748909810497,0.04771025,2620.3,2619.8,0.34894623]
[1748909810880,0.8386,2620.1,2617.9,0.8418]
[1748909811079,3.81835945,2619.0,2618.1,0.02]
[1748909811284,0.04773565,2618.9,2618.1,0.02]
[1748909811678,12.36854284,2618.8,2618.1,0.02]
[1748909811880,13.20714284,2618.8,2618.1,0.02]
[1748909812987,20.01568981,2618.8,2618.7,50.72044314]
[1748909814286,20.01568981,2618.8,2618.7,46.84706481]
[1748909814497,21.27470717,2618.8,2618.7,29.10956481]
[1748909814797,27.5524691,2618.8,2618.7,29.10956481]
[1748909815129,27.5514691,2618.8,2618.7,29.10956481]
[1748909815686,23.3174691,2618.8,2618.7,29.10956481]
[1748909815914,27.5494691,2618.8,2618.7,29.10956481]
[1748909816086,22.1244691,2618.8,2618.7,29.10956481]
[1748909816282,11.8911602,2618.8,2618.7,29.10956481]
[1748909816781,19.8911602,2618.8,2618.7,29.10956481]
[1748909819623,26.69970717,2618.8,2618.7,29.10956481]
[1748909821005,26.90740717,2618.8,2618.7,29.10956481]
[1748909821535,39.00340717,2618.8,2618.7,13.18569703]
[1748909821738,39.00340717,2618.8,2618.7,11.28569696]
[1748909821739,39.50417845,2618.8,2618.7,11.28569696]
[1748909821932,3.81898033,2618.5,2618.1,0.02]
[1748909822135,11.81869283,2618.7,2617.1,0.02]
[1748909822136,3.82087727,2617.2,2617.1,0.02]
[1748909822319,17.83464984,2617.2,2617.1,0.02]
[1748909822630,17.78687727,2617.2,2617.1,0.02]
[1748909822834,12.37087727,2617.2,2617.1,0.02]
[1748909823130,17.78687727,2617.2,2617.1,0.02]
[1748909823289,19.88449463,2617.2,2617.1,0.02]
[1748909823496,4.37233774,2616.2,2616.1,0.02]
[1748909823697,16.6471304,2616.2,2616.1,0.02]
[1748909823918,16.59933774,2616.2,2616.1,0.02]
[1748909824123,17.25444856,2616.2,2616.1,0.02]
[1748909824340,8.0,2616.2,2616.1,0.02]
[1748909824714,12.228,2616.2,2616.1,0.02]
[1748909825024,16.05033774,2616.2,2616.1,0.02]
[1748909825811,6.80854697,2616.8,2616.1,0.02]
[1748909825812,3.82080688,2617.3,2616.1,0.02]
[1748909826159,0.0477822,2617.5,2616.2,11.04454697]
[1748909826368,0.04776172,2618.2,2616.4,0.9488]
[1748909826537,3.81994277,2617.9,2616.9,0.9488]
[1748909826732,3.86776121,2617.8,2616.9,0.9488]
[1748909826913,3.82029339,2617.6,2616.9,0.9488]
[1748909827118,3.82029339,2617.6,2616.3,1.2013347]
[1748909827119,8.0,2617.4,2616.4,0.9488]
[1748909827421,3.82130054,2617.0,2616.4,0.9488]
[1748909827621,3.82155424,2616.8,2616.4,0.9488]
[1748909827941,0.04777219,2616.7,2616.1,0.02]
[1748909828357,4.244,2616.6,2616.1,0.02]
[1748909828593,3.82215675,2616.4,2616.1,0.02]
[1748909828883,4.245,2616.4,2616.1,0.02]
[1748909829015,0.04777858,2616.6,2616.1,0.02]
[1748909829215,0.04777691,2616.9,2616.1,0.02]
[1748909829453,11.82102897,2617.1,2616.1,0.02]
[1748909829617,8.0,2616.9,2616.1,0.02]